bitfinex-derivatives/quotes_BNBF0:USTF0_20250507
["timestamp","ask_amount","ask_price","bid_price","bid_amount"]
[1746607502622,0.30309608,607.01,605.55,2.54127825]
[1746607505220,0.28702451,607.0,605.55,2.54127825]
[1746607505622,0.30309608,606.99,605.55,2.54127825]
[1746607508225,0.30309608,607.07,605.55,2.54127825]
[1746607508524,0.28702688,606.98,605.55,2.54127825]
[1746607508726,0.32945672,607.06,605.55,2.54127825]
[1746607509124,0.30309608,606.97,605.55,2.54127825]
[1746607509425,0.30309608,607.05,605.55,2.54127825]
[1746607509619,0.32946758,607.04,605.55,2.54127825]
[1746607509820,0.61648736,607.04,605.55,2.54127825]
[1746607510125,0.30309608,607.03,605.55,2.54127825]
[1746607511325,0.28702215,607.02,605.55,2.54127825]
[1746607511727,0.30309608,607.01,605.55,2.54127825]
[1746607513626,0.28702215,607.02,605.55,2.54127825]
[1746607513922,0.30315588,607.01,605.55,2.54127825]
[1746607514122,0.59017803,607.01,605.55,2.54127825]
[1746607514326,0.28702215,607.01,605.55,2.54127825]
[1746607514526,0.30315588,607.0,605.55,2.54127825]
[1746607517025,0.32946758,607.04,605.55,2.54127825]
[1746607517323,0.2870257,606.99,605.55,2.54127825]
[1746607517629,0.3031565,606.98,605.55,2.54127825]
[1746607520131,0.3031565,607.03,605.55,2.54127825]
[1746607520331,0.28702806,606.97,605.55,2.54127825]
[1746607520732,0.3031565,606.96,605.55,2.54127825]
[1746607523236,0.28703517,606.95,605.55,2.54127825]
[1746607523536,0.3031565,606.94,605.55,2.54127825]
[1746607527242,0.28703517,606.95,605.55,2.54127825]
[1746607527541,0.30315762,606.94,605.55,2.54127825]
[1746607529238,0.28703753,606.93,605.55,2.54127825]
[1746607530140,0.30315762,606.92,605.55,2.54127825]
[1746607532141,0.2870399,606.91,605.55,2.54127825]
[1746607532746,0.30315762,606.9,605.55,2.54127825]
[1746607534746,0.2870399,606.91,605.55,2.54127825]
[1746607534950,0.32946758,607.04,605.55,2.54127825]
[1746607536249,0.28698546,607.03,605.55,2.54127825]
[1746607537951,0.32946758,607.04,605.55,2.54127825]
[1746607538349,0.28686954,607.03,605.55,2.54127825]
[1746607540955,0.32946758,607.04,605.55,2.54127825]
[1746607541356,0.2868589,607.03,605.55,2.54127825]
[1746607542957,0.3030866,607.02,605.55,2.54127825]
[1746607545159,0.3030866,607.03,605.55,2.54127825]
[1746607545358,0.28700321,607.01,605.55,2.54127825]
[1746607545761,0.3030866,607.0,605.55,2.54127825]
[1746607547262,0.28700676,606.99,605.55,2.54127825]
[1746607547657,0.3030866,606.98,605.55,2.54127825]
[1746607550164,0.3030866,607.03,605.55,2.54127825]
[1746607550364,0.28700913,606.97,605.55,2.54127825]
[1746607550867,0.3030866,606.96,605.55,2.54127825]
[1746607552564,0.28700913,606.97,605.55,2.54127825]
[1746607552865,0.30308742,606.96,605.55,2.54127825]
[1746607553365,0.28701149,606.95,605.55,2.54127825]
[1746607553761,0.30308742,606.94,605.55,2.54127825]
[1746607557169,0.28701149,606.95,605.55,2.54127825]
[1746607557469,0.30309395,606.94,605.55,2.54127825]
[1746607559169,0.30309395,607.03,605.55,2.54127825]
[1746607559374,0.28701386,606.93,605.55,2.54127825]
[1746607559670,0.30309395,607.03,605.55,2.54127825]
[1746607560274,0.28700321,607.02,605.55,2.54127825]
[1746607560473,0.30309395,607.01,605.55,2.54127825]
[1746607561870,0.32946758,607.04,605.55,2.54127825]
[1746607562170,0.28700558,607.0,605.55,2.54127825]
[1746607562572,0.30308289,606.99,605.55,2.54127825]
[1746607565379,0.28700794,606.98,605.55,2.54127825]
[1746607565679,0.30308289,606.97,605.55,2.54127825]
[1746607568376,0.28701031,606.96,605.55,2.54127825]
[1746607568776,0.30308289,606.95,605.55,2.54127825]
[1746607570681,0.28701031,606.96,605.55,2.54127825]
[1746607571176,0.30308464,606.95,605.55,2.54127825]
[1746607574284,0.28701268,606.94,605.55,2.54127825]
[1746607575086,0.30307691,606.93,605.55,2.54127825]
[1746607577183,0.30307691,607.03,605.55,2.54127825]
[1746607577488,0.28701504,606.92,605.55,2.54127825]
[1746607577688,0.30307691,607.03,605.55,2.54127825]
[1746607578689,0.28700321,607.02,605.55,2.54127825]
[1746607579291,0.30307691,607.01,605.55,2.54127825]
[1746607580491,0.28700558,607.0,605.55,2.54127825]
[1746607580690,0.59008249,607.0,605.55,2.54127825]
[1746607580985,0.30307691,606.99,605.55,2.54127825]
[1746607583392,0.28700794,606.98,605.55,2.54127825]
[1746607583592,0.30307691,606.97,605.55,2.54127825]
[1746607586197,0.28701031,606.96,605.55,2.54127825]
[1746607586593,0.30307691,606.95,605.55,2.54127825]
[1746607589500,0.28700321,606.94,605.55,2.54127825]
[1746607589800,0.30307691,606.93,605.55,2.54127825]
[1746607592501,0.28700321,606.92,605.55,2.54127825]
[1746607592804,0.30307691,606.91,605.55,2.54127825]
[1746607595402,0.28701741,606.9,605.55,2.54127825]
[1746607595702,0.30307691,606.89,605.55,2.54127825]
[1746607596302,0.28701741,606.9,605.55,2.54127825]
[1746607598003,0.32946758,607.04,605.55,2.54127825]
[1746607598303,0.28699137,606.89,605.55,2.54127825]
[1746607598605,0.32946758,607.04,605.55,2.54127825]
[1746607599107,0.30305616,607.03,605.55,2.54127825]
[1746607599906,0.28699137,607.02,605.55,2.54127825]
[1746607600405,0.30305616,607.01,605.55,2.54127825]
[1746607600707,0.28699137,607.02,605.55,2.54127825]
[1746607601006,0.32946758,607.04,605.55,2.54127825]
[1746607601401,0.28699137,607.01,605.55,2.54127825]
[1746607604010,0.32946758,607.04,605.55,2.54127825]
[1746607604208,0.3030489,607.0,605.55,2.54127825]
[1746607604509,0.28699137,607.0,605.55,2.54127825]
[1746607604907,0.3030489,606.99,605.55,2.54127825]
[1746607607110,0.3030489,607.03,605.55,2.54127825]
[1746607607310,0.28699611,606.98,605.55,2.54127825]
[1746607607513,0.3030489,606.97,605.55,2.54127825]
[1746607610820,0.28699611,606.98,605.55,2.54127825]
[1746607613019,0.32946758,607.04,605.55,2.54127825]
[1746607613213,0.28700084,606.97,605.55,2.54127825]
[1746607616014,0.32946758,607.04,605.55,2.54127825]
[1746607616220,0.28700084,606.96,605.55,2.54127825]
[1746607616519,0.32946758,607.04,605.55,2.54127825]
[1746607617721,0.28688018,607.03,605.55,2.54127825]
[1746607619117,0.32946758,607.04,605.55,2.54127825]
[1746607619316,0.28700084,607.02,605.55,2.54127825]
[1746607620617,0.30306896,607.01,605.55,2.54127825]
[1746607622220,0.28700321,607.0,605.55,2.54127825]
[1746607622726,0.30306896,606.99,605.55,2.54127825]
[1746607624227,0.28700321,607.0,605.55,2.54127825]
[1746607624529,0.3030694,606.99,605.55,2.54127825]
[1746607625224,0.28700558,606.98,605.55,2.54127825]
[1746607625628,0.3030694,606.97,605.55,2.54127825]
[1746607628430,0.28700558,606.98,605.55,2.54127825]
[1746607631034,0.32946758,607.04,605.55,2.54127825]
[1746607631334,0.28696771,606.97,605.55,2.54127825]
[1746607634036,0.32946758,607.04,605.55,2.54127825]
[1746607634335,0.28696534,606.96,605.55,2.54127825]
[1746607634529,0.32946758,607.04,605.55,2.54127825]
[1746607635435,0.28685653,607.03,605.55,2.54127825]
[1746607637042,0.32946758,607.04,605.55,2.54127825]
[1746607637445,0.28696534,607.02,605.55,2.54127825]
[1746607643050,0.32946758,607.04,605.55,2.54127825]
[1746607643247,0.28696534,607.01,605.55,2.54127825]
[1746607643947,0.30300173,607.0,605.55,2.54127825]
[1746607646347,0.28696889,606.99,605.55,2.54127825]
[1746607647647,0.3029987,606.98,605.55,2.54127825]
[1746607649250,0.28697126,606.97,605.55,2.54127825]
[1746607649750,0.3029987,606.96,605.55,2.54127825]
[1746607652449,0.28697362,606.95,605.55,2.54127825]
[1746607652751,0.30300198,606.94,605.55,2.54127825]
[1746607653154,0.28697362,606.95,605.55,2.54127825]
[1746607654948,0.32946758,607.04,605.55,2.54127825]
[1746607655254,0.28696534,606.94,605.55,2.54127825]
[1746607655651,0.32946758,607.04,605.55,2.54127825]
[1746607655948,0.30299952,607.03,605.55,2.54127825]
[1746607656753,0.28696534,607.02,605.55,2.54127825]
[1746607657953,0.32946758,607.04,605.55,2.54127825]
[1746607658455,0.58986664,607.03,605.55,2.54127825]
[1746607658657,0.28686362,607.03,605.55,2.54127825]
[1746607661057,0.32946758,607.04,605.55,2.54127825]
[1746607661358,0.28695824,607.02,605.55,2.54127825]
[1746607666957,0.32946758,607.04,605.55,2.54127825]
[1746607667363,0.28685535,607.03,605.55,2.54127825]
[1746607669965,0.32946758,607.04,605.55,2.54127825]
[1746607670265,0.28695824,607.02,605.55,2.54127825]
[1746607672965,0.32946758,607.04,605.55,2.54127825]
[1746607673466,0.28685062,607.03,605.55,2.54127825]
[1746607676165,0.32946758,607.04,605.55,2.54127825]
[1746607676365,0.28695824,607.02,605.55,2.54127825]
[1746607677868,0.30298647,607.01,605.55,2.54127825]
[1746607678866,0.28695824,607.02,605.55,2.54127825]
[1746607679170,0.32946758,607.04,605.55,2.54127825]
[1746607679370,0.28695824,607.01,605.55,2.54127825]
[1746607681970,0.32946758,607.04,605.55,2.54127825]
[1746607682370,0.28695824,607.0,605.55,2.54127825]
[1746607684971,0.32946758,607.04,605.55,2.54127825]
[1746607685270,0.28695824,606.99,605.55,2.54127825]
[1746607687972,0.32946758,607.04,605.55,2.54127825]
[1746607688574,0.28683998,607.03,605.55,2.54127825]
[1746607691075,0.32946758,607.04,605.55,2.54127825]
[1746607691478,0.28695824,607.02,605.55,2.54127825]
[1746607693979,0.32946758,607.04,605.55,2.54127825]
[1746607694679,0.28684234,607.03,605.55,2.54127825]
[1746607696981,0.32946758,607.04,605.55,2.54127825]
[1746607697480,0.28685417,607.03,605.55,2.54127825]
[1746607699981,0.32946758,607.04,605.55,2.54127825]
[1746607700284,0.28695824,607.02,605.55,2.54127825]
[1746607702986,0.32946758,607.04,605.55,2.54127825]
[1746607703587,0.28684707,607.03,605.55,2.54127825]
[1746607704488,0.30297109,607.02,605.55,2.54127825]
[1746607706286,0.28695943,607.01,605.55,2.54127825]
[1746607708994,0.32946758,607.04,605.55,2.54127825]
[1746607709193,0.3029689,607.03,605.55,2.54127825]
[1746607709395,0.28695824,607.0,605.55,2.54127825]
[1746607711990,0.32946758,607.04,605.55,2.54127825]
[1746607712490,0.58986374,607.03,605.55,2.54127825]
[1746607712995,0.28688846,607.03,605.55,2.54127825]
[1746607714998,0.32946758,607.04,605.55,2.54127825]
[1746607715298,0.28695824,607.02,605.55,2.54127825]
[1746607718000,0.32946758,607.04,605.55,2.54127825]
[1746607718502,0.2868719,607.03,605.55,2.54127825]
[1746607722102,0.30298128,607.02,605.55,2.54127825]
[1746607724603,0.28695824,607.01,605.55,2.54127825]
[1746607724806,0.58993952,607.01,605.55,2.54127825]
[1746607725107,0.30298128,607.0,605.55,2.54127825]
[1746607726404,0.28695824,607.01,605.55,2.54127825]
[1746607727009,0.32946758,607.04,605.55,2.54127825]
[1746607727609,0.28688964,607.03,605.55,2.54127825]
[1746607730003,0.32946758,607.04,605.55,2.54127825]
[1746607730304,0.28695824,607.02,605.55,2.54127825]
[1746607733014,0.32946758,607.04,605.55,2.54127825]
[1746607733416,0.28683762,607.03,605.55,2.54127825]
[1746607736016,0.32946758,607.04,605.55,2.54127825]
[1746607736316,0.28698191,607.02,605.55,2.54127825]
[1746607738719,0.3030555,607.01,605.55,2.54127825]
[1746607740619,0.28698191,607.02,605.55,2.54127825]
[1746607740818,0.30306396,607.01,605.55,2.54127825]
[1746607742214,0.30306396,607.03,605.55,2.54127825]
[1746607742419,0.28700084,607.0,605.55,2.54127825]
[1746607742818,0.30306643,606.99,605.55,2.54127825]
[1746607745216,0.30306643,607.03,605.55,2.54127825]
[1746607745418,0.28701268,606.98,605.55,2.54127825]
[1746607745718,0.30306643,606.97,605.55,2.54127825]
[1746607751227,0.30306643,607.03,605.55,2.54127825]
[1746607751429,0.28701504,606.96,605.55,2.54127825]
[1746607751629,0.30306643,606.95,605.55,2.54127825]
[1746607754331,0.28702215,606.94,605.55,2.54127825]
[1746607754532,0.30306643,606.93,605.55,2.54127825]
[1746607757034,0.32946758,607.04,605.55,2.54127825]
[1746607757230,0.30313512,607.03,605.55,2.54127825]
[1746607757437,0.28704345,606.92,605.55,2.54127825]
[1746607757631,0.30313512,606.91,605.55,2.54127825]
[1746607757932,0.30313512,606.9,605.55,2.54127825]
[1746607758139,0.30313512,607.03,605.55,2.54127825]
[1746607758838,0.28703161,607.02,605.55,2.54127825]
[1746607759038,0.30313663,607.01,605.55,2.54127825]
[1746607759641,0.32948929,607.0,605.55,2.54127825]
[1746607760035,0.30313663,606.99,605.55,2.54127825]
[1746607760236,0.32950014,606.98,605.55,2.54127825]
[1746607760635,0.30313663,606.97,605.55,2.54127825]
[1746607760837,0.6326422,606.97,605.55,2.54127825]
[1746607761140,0.30313663,606.96,605.55,2.54127825]
[1746607763443,0.28704937,606.95,605.55,2.54127825]
[1746607763743,0.30313663,606.94,605.55,2.54127825]
[1746607764143,0.63265849,606.94,605.55,2.54127825]
[1746607764538,0.30313663,606.93,605.55,2.54127825]
[1746607765242,0.32952186,606.94,605.55,2.54127825]
[1746607765539,0.30317637,606.93,605.55,2.54127825]
[1746607766344,0.2870766,606.92,605.55,2.54127825]
[1746607766744,0.63271452,606.91,605.55,2.54127825]
[1746607767144,0.30317637,606.9,605.55,2.54127825]
[1746607767344,0.32954901,606.89,605.55,2.54127825]
[1746607767544,0.30317637,606.88,605.55,2.54127825]
[1746607768044,0.32955987,606.87,605.55,2.54127825]
[1746607768543,0.30317637,606.86,605.55,2.54127825]
[1746607768744,0.63274167,606.86,605.55,2.54127825]
[1746607769239,0.30317637,606.85,605.55,2.54127825]
[1746607769443,0.59026245,606.85,605.55,2.54127825]
[1746607770345,0.30317637,606.84,605.55,2.54127825]
[1746607773648,0.28708608,606.85,605.55,2.54127825]
[1746607773843,0.30318601,606.84,605.55,2.54127825]
[1746607775448,0.28708726,606.83,605.55,2.54127825]
[1746607775949,0.30318601,606.82,605.55,2.54127825]
[1746607778250,0.30318601,606.85,605.55,2.54127825]
[1746607778546,0.28708489,606.81,605.55,2.54127825]
[1746607778745,0.30318601,606.8,605.55,2.54127825]
[1746607781248,0.3295653,606.86,605.55,2.54127825]
[1746607781452,0.28708134,606.79,605.55,2.54127825]
[1746607781755,0.59025524,606.79,605.55,2.54127825]
[1746607781953,0.28708134,606.79,605.55,2.54127825]
[1746607782153,0.3031739,606.78,605.55,2.54127825]
[1746607784550,0.28708134,606.77,605.55,2.54127825]
[1746607784854,0.3031739,606.76,605.55,2.54127825]
[1746607787357,0.287092,606.75,605.55,2.54127825]
[1746607787858,0.3031739,606.74,605.55,2.54127825]
[1746607790260,0.3031739,606.85,605.55,2.54127825]
[1746607790460,0.2870695,606.73,605.55,2.54127825]
[1746607790661,0.3031739,606.72,605.55,2.54127825]
[1746607791057,0.3031739,606.85,605.55,2.54127825]
[1746607791857,0.2870695,606.84,605.55,2.54127825]
[1746607792155,0.3031739,606.83,605.55,2.54127825]
[1746607793260,0.3031739,606.85,605.55,2.54127825]
[1746607793459,0.2870695,606.82,605.55,2.54127825]
[1746607793654,0.3031739,606.81,605.55,2.54127825]
[1746607795654,0.2870695,606.82,605.55,2.54127825]
[1746607796059,0.3295653,606.86,605.55,2.54127825]
[1746607796260,0.30317146,606.81,605.55,2.54127825]
[1746607796559,0.59017585,606.85,605.55,2.54127825]
[1746607797159,0.30317146,606.8,605.55,2.54127825]
[1746607797555,0.30317146,606.84,605.55,2.54127825]
[1746607797862,0.28700439,606.85,605.55,2.54127825]
[1746607798359,0.30317505,606.84,605.55,2.54127825]
[1746607799462,0.28707068,606.83,605.55,2.54127825]
[1746607799758,0.30317505,606.82,605.55,2.54127825]
[1746607802264,0.30317505,606.85,605.55,2.54127825]
[1746607802458,0.28708252,606.81,605.55,2.54127825]
[1746607803064,0.30317505,606.8,605.55,2.54127825]
[1746607805368,0.32960332,606.79,605.55,2.54127825]
[1746607805865,0.30317505,606.78,605.55,2.54127825]
[1746607806065,0.6327838,606.78,605.55,2.54127825]
[1746607806465,0.30317505,606.77,605.55,2.54127825]
[1746607806762,0.32960875,606.78,605.55,2.54127825]
[1746607807066,0.30321775,606.77,605.55,2.54127825]
[1746607808363,0.28711924,606.76,605.55,2.54127825]
[1746607808868,0.30321775,606.75,605.55,2.54127825]
[1746607813673,0.28711924,606.76,605.55,2.54127825]
[1746607813873,0.30325609,606.75,605.55,2.54127825]
[1746607814076,0.63288114,606.75,605.55,2.54127825]
[1746607814469,0.59038243,606.74,605.55,2.54127825]
[1746607814773,0.30325609,606.73,605.55,2.54127825]
[1746607815073,0.32964135,606.72,605.55,2.54127825]
[1746607815274,0.30325609,606.71,605.55,2.54127825]
[1746607817475,0.28714767,606.7,605.55,2.54127825]
[1746607817672,0.30325609,606.69,605.55,2.54127825]
[1746607821674,0.30325609,606.68,605.55,2.54127825]
[1746607821977,0.30325609,606.69,605.55,2.54127825]
[1746607822370,0.30325609,606.68,605.55,2.54127825]
[1746607822575,0.30325609,606.67,605.55,2.54127825]
[1746607822975,0.30325609,606.69,605.55,2.54127825]
[1746607823371,0.28717136,606.66,605.55,2.54127825]
[1746607823769,0.30325609,606.65,605.55,2.54127825]
[1746607824376,0.32968482,606.64,605.55,2.54127825]
[1746607824773,0.30325609,606.63,605.55,2.54127825]
[1746607826476,0.28714056,606.62,605.55,2.54127825]
[1746607829075,0.32968482,606.64,605.55,2.54127825]
[1746607829274,0.59039081,606.61,605.55,2.54127825]
[1746607829680,0.30325025,606.6,605.55,2.54127825]
[1746607831382,0.28714056,606.61,605.55,2.54127825]
[1746607831582,0.303251,606.6,605.55,2.54127825]
[1746607832377,0.28714411,606.59,605.55,2.54127825]
[1746607832577,0.303251,606.58,605.55,2.54127825]
[1746607838386,0.303251,606.63,605.55,2.54127825]
[1746607838686,0.28714648,606.57,605.55,2.54127825]
[1746607838988,0.303251,606.56,605.55,2.54127825]
[1746607841289,0.28714885,606.55,605.55,2.54127825]
[1746607841587,0.303251,606.54,605.55,2.54127825]
[1746607844593,0.28714056,606.53,605.55,2.54127825]
[1746607844889,0.59039156,606.53,605.55,2.54127825]
[1746607845090,0.303251,606.52,605.55,2.54127825]
[1746607846291,0.28714056,606.53,605.55,2.54127825]
[1746607846694,0.30324217,606.52,605.55,2.54127825]
[1746607853391,0.30324217,606.63,605.55,2.54127825]
[1746607853596,0.28714056,606.51,605.55,2.54127825]
[1746607853798,0.30324217,606.63,605.55,2.54127825]
[1746607855099,0.28714056,606.62,605.55,2.54127825]
[1746607855300,0.30324217,606.61,605.55,2.54127825]
[1746607856401,0.28714293,606.6,605.55,2.54127825]
[1746607857703,0.30324217,606.59,605.55,2.54127825]
[1746607859301,0.2871453,606.58,605.55,2.54127825]
[1746607859902,0.30324217,606.57,605.55,2.54127825]
[1746607862403,0.30324217,606.63,605.55,2.54127825]
[1746607862607,0.28714056,606.56,605.55,2.54127825]
[1746607862904,0.30324217,606.55,605.55,2.54127825]
[1746607865408,0.28715004,606.54,605.55,2.54127825]
[1746607865709,0.30324217,606.53,605.55,2.54127825]
[1746607865911,0.28715004,606.54,605.55,2.54127825]
[1746607866111,0.30324385,606.53,605.55,2.54127825]
[1746607868427,0.28715241,606.52,605.55,2.54127825]
[1746607868615,0.30324385,606.51,605.55,2.54127825]
[1746607871413,0.28715477,606.5,605.55,2.54127825]
[1746607871714,0.30324385,606.49,605.55,2.54127825]
[1746607872811,0.28715477,606.5,605.55,2.54127825]
[1746607873419,0.30325572,606.49,605.55,2.54127825]
[1746607874519,0.28714056,606.48,605.55,2.54127825]
[1746607874920,0.30325572,606.47,605.55,2.54127825]
[1746607876518,0.28714056,606.48,605.55,2.54127825]
[1746607876820,0.30325458,606.47,605.55,2.54127825]
[1746607877420,0.28715951,606.46,605.55,2.54127825]
[1746607878020,0.30325458,606.45,605.55,2.54127825]
[1746607880424,0.28716188,606.44,605.55,2.54127825]
[1746607880926,0.30325458,606.43,605.55,2.54127825]
[1746607883523,0.28714056,606.42,605.55,2.54127825]
[1746607886131,0.32968482,606.64,605.55,2.54127825]
[1746607886432,0.28714056,606.41,605.55,2.54127825]
[1746607887528,0.32968482,606.64,605.55,2.54127825]
[1746607887733,0.28710739,606.53,605.55,2.54127825]
[1746607888034,0.32968482,606.64,605.55,2.54127825]
[1746607888336,0.28710739,606.53,605.55,2.54127825]
[1746607888536,0.32968482,606.64,605.55,2.54127825]
[1746607888838,0.28710739,606.53,605.55,2.54127825]
[1746607889136,0.32968482,606.64,605.55,2.54127825]
[1746607890432,0.28699492,606.63,605.55,2.54127825]
[1746607892139,0.32968482,606.64,605.55,2.54127825]
[1746607892536,0.28698782,606.63,605.55,2.54127825]
[1746607896343,0.30320363,606.62,605.55,2.54127825]
[1746607898344,0.28710858,606.61,605.55,2.54127825]
[1746607898738,0.30320363,606.6,605.55,2.54127825]
[1746607901446,0.30320363,606.63,605.55,2.54127825]
[1746607901646,0.28710739,606.59,605.55,2.54127825]
[1746607902048,0.30320363,606.58,605.55,2.54127825]
[1746607904346,0.30320363,606.63,605.55,2.54127825]
[1746607904547,0.28710739,606.57,605.55,2.54127825]
[1746607905048,0.30320363,606.56,605.55,2.54127825]
[1746607906147,0.28710739,606.57,605.55,2.54127825]
[1746607907147,0.32968482,606.64,605.55,2.54127825]
[1746607907448,0.28710739,606.56,605.55,2.54127825]
[1746607907743,0.32968482,606.64,605.55,2.54127825]
[1746607908643,0.28703161,606.63,605.55,2.54127825]
[1746607910147,0.32968482,606.64,605.55,2.54127825]
[1746607910447,0.28710739,606.62,605.55,2.54127825]
[1746607913149,0.32968482,606.64,605.55,2.54127825]
[1746607913651,0.28697954,606.63,605.55,2.54127825]
[1746607916152,0.32968482,606.64,605.55,2.54127825]
[1746607916652,0.28697481,606.63,605.55,2.54127825]
[1746607919155,0.32968482,606.64,605.55,2.54127825]
[1746607919556,0.28700321,606.63,605.55,2.54127825]
[1746607920056,0.30321809,606.62,605.55,2.54127825]
[1746607922562,0.28700321,606.63,605.55,2.54127825]
[1746607922755,0.30321124,606.62,605.55,2.54127825]
[1746607925458,0.28710858,606.61,605.55,2.54127825]
[1746607925962,0.30321124,606.6,605.55,2.54127825]
[1746607928368,0.30321124,606.63,605.55,2.54127825]
[1746607928562,0.28710739,606.59,605.55,2.54127825]
[1746607928966,0.30321124,606.58,605.55,2.54127825]
[1746607931668,0.28711331,606.57,605.55,2.54127825]
[1746607931967,0.30321124,606.56,605.55,2.54127825]
[1746607932669,0.28711331,606.57,605.55,2.54127825]
[1746607933868,0.30324066,606.56,605.55,2.54127825]
[1746607934370,0.28713464,606.55,605.55,2.54127825]
[1746607934771,0.30324309,606.54,605.55,2.54127825]
[1746607937374,0.287137,606.53,605.55,2.54127825]
[1746607940178,0.32968482,606.64,605.55,2.54127825]
[1746607940573,0.28712634,606.52,605.55,2.54127825]
[1746607940875,0.30323786,606.63,605.55,2.54127825]
[1746607941073,0.32968482,606.64,605.55,2.54127825]
[1746607941478,0.28705174,606.63,605.55,2.54127825]
[1746607941779,0.30323966,606.62,605.55,2.54127825]
[1746607943486,0.28712753,606.61,605.55,2.54127825]
[1746607943682,0.30323966,606.6,605.55,2.54127825]
[1746607944887,0.28712753,606.61,605.55,2.54127825]
[1746607945186,0.30326285,606.6,605.55,2.54127825]
[1746607945486,0.28712753,606.61,605.55,2.54127825]
[1746607945786,0.3032821,606.6,605.55,2.54127825]
[1746607946388,0.28715359,606.59,605.55,2.54127825]
[1746607946687,0.59044935,606.59,605.55,2.54127825]
[1746607946880,0.28715359,606.59,605.55,2.54127825]
[1746607947187,0.30329576,606.58,605.55,2.54127825]
[1746607949589,0.28716544,606.57,605.55,2.54127825]
[1746607950188,0.30329576,606.56,605.55,2.54127825]
[1746607952395,0.28716781,606.55,605.55,2.54127825]
[1746607952893,0.30329576,606.54,605.55,2.54127825]
[1746607955197,0.32968482,606.64,605.55,2.54127825]
[1746607955392,0.28717018,606.53,605.55,2.54127825]
[1746607955693,0.30331961,606.63,605.55,2.54127825]
[1746607955694,0.30331961,606.52,605.55,2.54127825]
[1746607955897,0.30331961,606.63,605.55,2.54127825]
[1746607956994,0.28715951,606.62,605.55,2.54127825]
[1746607957294,0.30331961,606.61,605.55,2.54127825]
[1746607958400,0.30331961,606.63,605.55,2.54127825]
[1746607958900,0.28715951,606.62,605.55,2.54127825]
[1746607959501,0.30331961,606.61,605.55,2.54127825]
[1746607959902,0.63302073,606.61,605.55,2.54127825]
[1746607960298,0.30331961,606.6,605.55,2.54127825]
[1746607961702,0.28717492,606.59,605.55,2.54127825]
[1746607962002,0.30331961,606.58,605.55,2.54127825]
[1746607964703,0.28717729,606.57,605.55,2.54127825]
[1746607965103,0.30331961,606.56,605.55,2.54127825]
[1746607967398,0.28717966,606.55,605.55,2.54127825]
[1746607967701,0.30331961,606.54,605.55,2.54127825]
[1746607970401,0.28718203,606.53,605.55,2.54127825]
[1746607970906,0.30331961,606.52,605.55,2.54127825]
[1746607973411,0.2871844,606.51,605.55,2.54127825]
[1746607974211,0.30331718,606.5,605.55,2.54127825]
[1746607974911,0.2871844,606.51,605.55,2.54127825]
[1746607975106,0.30331484,606.49,605.55,2.54127825]
[1746607975410,0.30331484,606.5,605.55,2.54127825]
[1746607976411,0.28718677,606.49,605.55,2.54127825]
[1746607976713,0.30331455,606.48,605.55,2.54127825]
[1746607978413,0.28718677,606.49,605.55,2.54127825]
[1746607978715,0.30331479,606.48,605.55,2.54127825]
[1746607979915,0.28718677,606.49,605.55,2.54127825]
[1746607980214,0.30331469,606.48,605.55,2.54127825]
[1746607982412,0.28718914,606.47,605.55,2.54127825]
[1746607983015,0.30331469,606.46,605.55,2.54127825]
[1746607983915,0.28718914,606.47,605.55,2.54127825]
[1746607984512,0.30331367,606.46,605.55,2.54127825]
[1746607984818,0.28718914,606.47,605.55,2.54127825]
[1746607985118,0.32970112,606.61,605.55,2.54127825]
[1746607985417,0.28716307,606.46,605.55,2.54127825]
[1746607985713,0.32970112,606.61,605.55,2.54127825]
[1746607985916,0.28716307,606.45,605.55,2.54127825]
[1746607986317,0.32970112,606.61,605.55,2.54127825]
[1746607986517,0.28716307,606.44,605.55,2.54127825]
[1746607986718,0.32970112,606.61,605.55,2.54127825]
[1746607987020,0.28716307,606.43,605.55,2.54127825]
[1746607987220,0.30329191,606.6,605.55,2.54127825]
[1746607987418,0.32970112,606.61,605.55,2.54127825]
[1746607987619,0.28716188,606.42,605.55,2.54127825]
[1746607987815,0.32970112,606.61,605.55,2.54127825]
[1746607988014,0.2871607,606.41,605.55,2.54127825]
[1746607988413,0.30329216,606.6,605.55,2.54127825]
[1746607988618,0.28715833,606.4,605.55,2.54127825]
[1746607988815,0.32970112,606.61,605.55,2.54127825]
[1746607989120,0.28715833,606.39,605.55,2.54127825]
[1746607989422,0.32970112,606.61,605.55,2.54127825]
[1746607989622,0.28715833,606.38,605.55,2.54127825]
[1746607989921,0.32970112,606.61,605.55,2.54127825]
[1746607990116,0.28715833,606.37,605.55,2.54127825]
[1746607990419,0.32970112,606.61,605.55,2.54127825]
[1746607990824,0.28715833,606.36,605.55,2.54127825]
[1746607991018,0.30329204,606.6,605.55,2.54127825]
[1746607991324,0.28715951,606.35,605.55,2.54127825]
[1746607991620,0.32970112,606.61,605.55,2.54127825]
[1746607992322,0.30329204,606.6,605.55,2.54127825]
[1746607992519,0.59038404,606.6,605.55,2.54127825]
[1746607993023,0.30329204,606.59,605.55,2.54127825]
[1746607994423,0.32970112,606.61,605.55,2.54127825]
[1746607994424,0.30329204,606.6,605.55,2.54127825]
[1746607994629,0.28715833,606.58,605.55,2.54127825]
[1746607995329,0.30329204,606.57,605.55,2.54127825]
[1746607997633,0.28715833,606.56,605.55,2.54127825]